[Event "Titled Tuesday Blitz May 17 Late 2022"]
[White "Ivanisevic, Ivan"]
[Black "Sjugirov, Sanan"]
[WhiteFideId "912417"]
[BlackFideId "4189302"]
[WhiteElo "2495"]
[BlackElo "2602"]
[Result "0-1"]
[Round "06"]
[TimeControl "180+1"]
[Date "2022.05.17"]
[WhiteClock "0:00:01"]
[BlackClock "0:00:04"]

1. d4 {[%clk 0:03:00]}  Nf6 {[%clk 0:03:00]} 2. c4 {[%clk 0:03:00]}  e6 {[%clk 0:02:58]} 3. g3 {[%clk 0:03:01]}  c5 {[%clk 0:02:57]} 4. d5 {[%clk 0:03:00]}  exd5 {[%clk 0:02:58]} 5. cxd5 {[%clk 0:03:00]}  d6 {[%clk 0:02:58]} 6. Nc3 {[%clk 0:03:01]}  g6 {[%clk 0:02:59]} 7. Bg2 {[%clk 0:03:01]}  Bg7 {[%clk 0:03:00]} 8. Nf3 {[%clk 0:03:02]}  O-O {[%clk 0:03:00]} 9. O-O {[%clk 0:03:02]}  Re8 {[%clk 0:03:01]} 10. Re1 {[%clk 0:03:02]}  Na6 {[%clk 0:02:54]} 11. h3 {[%clk 0:02:30]}  Nc7 {[%clk 0:02:53]} 12. e4 {[%clk 0:02:25]}  Nd7 {[%clk 0:02:47]} 13. Bf4 {[%clk 0:02:17]}  Ne5 {[%clk 0:02:06]} 14. Nxe5 {[%clk 0:02:17]}  Rxe5 {[%clk 0:01:59]} 15. a4 {[%clk 0:02:01]}  Bd7 {[%clk 0:01:45]} 16. Qd2 {[%clk 0:01:55]}  Rb8 {[%clk 0:01:32]} 17. Be3 {[%clk 0:01:43]}  Re8 {[%clk 0:01:25]} 18. f4 {[%clk 0:01:43]}  Na6 {[%clk 0:01:20]} 19. Nb5 {[%clk 0:01:20]}  Bxb5 {[%clk 0:01:15]} 20. axb5 {[%clk 0:01:21]}  Nb4 {[%clk 0:01:15]} 21. e5 {[%clk 0:01:18]}  Qb6 {[%clk 0:01:03]} 22. e6 {[%clk 0:01:18]}  Qxb5 {[%clk 0:00:55]} 23. Bf1 {[%clk 0:01:17]}  Qb6 {[%clk 0:00:53]} 24. f5 {[%clk 0:01:13]}  gxf5 {[%clk 0:00:43]} 25. Bh6 {[%clk 0:01:04]}  Bd4+ {[%clk 0:00:27]} 26. Kh1 {[%clk 0:01:04]}  fxe6 {[%clk 0:00:23]} 27. Qg5+ {[%clk 0:00:54]}  Kh8 {[%clk 0:00:23]} 28. dxe6 {[%clk 0:00:53]}  d5 {[%clk 0:00:22]} 29. e7 {[%clk 0:00:46]}  Qf6 {[%clk 0:00:19]} 30. Bb5 {[%clk 0:00:35]}  Qxg5 {[%clk 0:00:16]} 31. Bxg5 {[%clk 0:00:36]}  Nc2 {[%clk 0:00:15]} 32. Rac1 {[%clk 0:00:27]}  Nxe1 {[%clk 0:00:15]} 33. Rxe1 {[%clk 0:00:28]}  Kg7 {[%clk 0:00:15]} 34. Re6 {[%clk 0:00:22]}  Bxb2 {[%clk 0:00:08]} 35. Bd7 {[%clk 0:00:19]}  c4 {[%clk 0:00:07]} 36. Rd6 {[%clk 0:00:15]}  c3 {[%clk 0:00:06]} 37. Bxf5 {[%clk 0:00:15]}  Ba3 {[%clk 0:00:04]} 38. Rh6 {[%clk 0:00:13]}  Bxe7 {[%clk 0:00:03]} 39. Rxh7+ {[%clk 0:00:14]}  Kg8 {[%clk 0:00:04]} 40. Bh6 {[%clk 0:00:13]}  Bf6 {[%clk 0:00:03]} 41. Rd7 {[%clk 0:00:13]}  Rbd8 {[%clk 0:00:02]} 42. Rxb7 {[%clk 0:00:10]}  c2 {[%clk 0:00:02]} 43. Bh7+ {[%clk 0:00:04]}  Kh8 {[%clk 0:00:02]} 44. Kg2 {[%clk 0:00:05]}  Rc8 {[%clk 0:00:02]} 45. Bg6 {[%clk 0:00:03]}  c1=Q {[%clk 0:00:02]} 46. Bxc1 {[%clk 0:00:03]}  Rc2+ {[%clk 0:00:01]} 47. Bxc2 {[%clk 0:00:01]}  Re2+ {[%clk 0:00:02]} 48. Kf3 {[%clk 0:00:02]}  Rxc2 {[%clk 0:00:03]} 49. Bf4 {[%clk 0:00:02]}  a5 {[%clk 0:00:03]} 50. Kg4 {[%clk 0:00:03]}  a4 {[%clk 0:00:03]} 51. Kf5 {[%clk 0:00:04]}  Bb2 {[%clk 0:00:02]} 52. Rb8+ {[%clk 0:00:03]}  Kh7 {[%clk 0:00:02]} 53. Rb7+ {[%clk 0:00:04]}  Kg8 {[%clk 0:00:03]} 54. Rb8+ {[%clk 0:00:02]}  Kf7 {[%clk 0:00:03]} 55. Rb7+ {[%clk 0:00:02]}  Ke8 {[%clk 0:00:03]} 56. Bd6 {[%clk 0:00:01]}  a3 {[%clk 0:00:03]} 57. Ke6 {[%clk 0:00:01]}  Re2+ {[%clk 0:00:03]} 58. Kxd5 {[%clk 0:00:01]}  a2 {[%clk 0:00:04]} 59. Rb8+ {[%clk 0:00:01]}  Kf7 {[%clk 0:00:04]} 60. Rb7+ {[%clk 0:00:01]}  Kg6 {[%clk 0:00:04]} 0-1


[Site "https://www.chess.com"]

[Event "Titled Tuesday Blitz May 17 Late 2022"]
[White "Kaasen, Tor Fredrik"]
[Black "Steinberg, Nitzan"]
[WhiteFideId "1516647"]
[BlackFideId "2801795"]
[WhiteElo "2335"]
[BlackElo "2471"]
[Result "0-1"]
[Round "06"]
[TimeControl "180+1"]
[Date "2022.05.17"]
[WhiteClock "0:00:03"]
[BlackClock "0:00:07"]

1. d4 {[%clk 0:02:55]}  d5 {[%clk 0:02:59]} 2. c4 {[%clk 0:02:55]}  c6 {[%clk 0:03:00]} 3. Nf3 {[%clk 0:02:56]}  Nf6 {[%clk 0:03:01]} 4. e3 {[%clk 0:02:56]}  Bf5 {[%clk 0:03:00]} 5. Nc3 {[%clk 0:02:56]}  e6 {[%clk 0:03:00]} 6. Nh4 {[%clk 0:02:57]}  Be4 {[%clk 0:03:00]} 7. f3 {[%clk 0:02:56]}  Bg6 {[%clk 0:03:01]} 8. Nxg6 {[%clk 0:02:55]}  hxg6 {[%clk 0:03:02]} 9. Bd2 {[%clk 0:02:55]}  Bd6 {[%clk 0:02:56]} 10. Qb3 {[%clk 0:02:55]}  Qc7 {[%clk 0:02:49]} 11. O-O-O {[%clk 0:02:51]}  Nbd7 {[%clk 0:02:40]} 12. cxd5 {[%clk 0:02:49]}  Nxd5 {[%clk 0:02:32]} 13. e4 {[%clk 0:02:40]}  Nxc3 {[%clk 0:02:29]} 14. Bxc3 {[%clk 0:02:41]}  Bxh2 {[%clk 0:02:17]} 15. Kb1 {[%clk 0:02:41]}  O-O-O {[%clk 0:02:16]} 16. d5 {[%clk 0:02:28]}  exd5 {[%clk 0:02:02]} 17. exd5 {[%clk 0:02:26]}  Nc5 {[%clk 0:01:59]} 18. Qc2 {[%clk 0:02:07]}  Bd6 {[%clk 0:01:42]} 19. Rxh8 {[%clk 0:02:03]}  Rxh8 {[%clk 0:01:43]} 20. Bxg7 {[%clk 0:01:22]}  Rd8 {[%clk 0:01:42]} 21. Bd4 {[%clk 0:01:05]}  Nd7 {[%clk 0:01:05]} 22. dxc6 {[%clk 0:01:02]}  bxc6 {[%clk 0:01:06]} 23. Bxa7 {[%clk 0:00:49]}  Qxa7 {[%clk 0:00:54]} 24. Rxd6 {[%clk 0:00:49]}  Ne5 {[%clk 0:00:40]} 25. Rxd8+ {[%clk 0:00:33]}  Kxd8 {[%clk 0:00:41]} 26. Qd2+ {[%clk 0:00:33]}  Kc7 {[%clk 0:00:28]} 27. Qc3 {[%clk 0:00:25]}  f6 {[%clk 0:00:22]} 28. f4 {[%clk 0:00:13]}  Qf2 {[%clk 0:00:22]} 29. Qa5+ {[%clk 0:00:12]}  Kd7 {[%clk 0:00:20]} 30. fxe5 {[%clk 0:00:06]}  Qxf1+ {[%clk 0:00:20]} 31. Kc2 {[%clk 0:00:06]}  Qxg2+ {[%clk 0:00:21]} 32. Kc1 {[%clk 0:00:03]}  Qg5+ {[%clk 0:00:20]} 33. Kd1 {[%clk 0:00:03]}  fxe5 {[%clk 0:00:16]} 34. Qa7+ {[%clk 0:00:03]}  Ke6 {[%clk 0:00:16]} 35. a4 {[%clk 0:00:04]}  Qg4+ {[%clk 0:00:16]} 36. Kc1 {[%clk 0:00:03]}  Qc4+ {[%clk 0:00:16]} 37. Kb1 {[%clk 0:00:04]}  g5 {[%clk 0:00:12]} 38. a5 {[%clk 0:00:04]}  g4 {[%clk 0:00:12]} 39. a6 {[%clk 0:00:04]}  g3 {[%clk 0:00:12]} 40. Qb7 {[%clk 0:00:03]}  g2 {[%clk 0:00:10]} 41. Qc8+ {[%clk 0:00:04]}  Ke7 {[%clk 0:00:07]} 42. Qc7+ {[%clk 0:00:04]}  Kf6 {[%clk 0:00:06]} 43. Qd8+ {[%clk 0:00:04]}  Kf5 {[%clk 0:00:06]} 44. Qf8+ {[%clk 0:00:04]}  Ke4 {[%clk 0:00:06]} 45. Qg7 {[%clk 0:00:03]}  Qf1+ {[%clk 0:00:06]} 46. Ka2 {[%clk 0:00:03]}  g1=Q {[%clk 0:00:07]} 0-1


[Site "https://www.chess.com"]

[Event "Titled Tuesday Blitz May 17 Late 2022"]
[White "Keymer, Vincent"]
[Black "Makarian, Rudik"]
[WhiteFideId "12940690"]
[BlackFideId "44105681"]
[WhiteElo "2548"]
[BlackElo "2419"]
[Result "1/2-1/2"]
[Round "06"]
[TimeControl "180+1"]
[Date "2022.05.17"]
[WhiteClock "0:00:06"]
[BlackClock "0:00:04"]

1. Nf3 {[%clk 0:03:00]}  Nf6 {[%clk 0:03:00]} 2. c4 {[%clk 0:03:01]}  g6 {[%clk 0:03:00]} 3. Nc3 {[%clk 0:03:00]}  Bg7 {[%clk 0:03:00]} 4. g3 {[%clk 0:03:00]}  c5 {[%clk 0:03:01]} 5. Bg2 {[%clk 0:03:00]}  Nc6 {[%clk 0:03:01]} 6. O-O {[%clk 0:02:59]}  d6 {[%clk 0:03:02]} 7. d4 {[%clk 0:02:59]}  cxd4 {[%clk 0:03:03]} 8. Nxd4 {[%clk 0:03:00]}  Bd7 {[%clk 0:03:03]} 9. b3 {[%clk 0:02:59]}  Qc8 {[%clk 0:03:02]} 10. Bb2 {[%clk 0:02:58]}  Bh3 {[%clk 0:03:01]} 11. Rc1 {[%clk 0:02:53]}  h5 {[%clk 0:03:01]} 12. Nd5 {[%clk 0:02:41]}  h4 {[%clk 0:02:53]} 13. Nxc6 {[%clk 0:02:01]}  bxc6 {[%clk 0:01:31]} 14. Nxf6+ {[%clk 0:01:59]}  Bxf6 {[%clk 0:01:13]} 15. Bxf6 {[%clk 0:01:56]}  exf6 {[%clk 0:01:14]} 16. Qxd6 {[%clk 0:01:39]}  Bxg2 {[%clk 0:01:13]} 17. Kxg2 {[%clk 0:01:11]}  hxg3 {[%clk 0:01:13]} 18. hxg3 {[%clk 0:00:47]}  Qh3+ {[%clk 0:01:05]} 19. Kf3 {[%clk 0:00:47]}  Qf5+ {[%clk 0:00:51]} 20. Qf4 {[%clk 0:00:45]}  Qh5+ {[%clk 0:00:45]} 21. Qg4 {[%clk 0:00:41]}  Ke7 {[%clk 0:00:41]} 22. Qxh5 {[%clk 0:00:39]}  Rxh5 {[%clk 0:00:42]} 23. Rh1 {[%clk 0:00:38]}  Rf5+ {[%clk 0:00:39]} 24. Kg2 {[%clk 0:00:37]}  a5 {[%clk 0:00:38]} 25. Rhd1 {[%clk 0:00:31]}  a4 {[%clk 0:00:36]} 26. b4 {[%clk 0:00:32]}  a3 {[%clk 0:00:36]} 27. Rd3 {[%clk 0:00:32]}  Ra4 {[%clk 0:00:36]} 28. Rb3 {[%clk 0:00:29]}  Kd6 {[%clk 0:00:31]} 29. f4 {[%clk 0:00:20]}  Rh5 {[%clk 0:00:27]} 30. b5 {[%clk 0:00:18]}  Kc5 {[%clk 0:00:20]} 31. Kf3 {[%clk 0:00:15]}  Rh8 {[%clk 0:00:20]} 32. e3 {[%clk 0:00:14]}  Rha8 {[%clk 0:00:15]} 33. g4 {[%clk 0:00:13]}  Rc8 {[%clk 0:00:13]} 34. Rcc3 {[%clk 0:00:13]}  Rxc4 {[%clk 0:00:13]} 35. Rxc4+ {[%clk 0:00:12]}  Kxc4 {[%clk 0:00:13]} 36. b6 {[%clk 0:00:13]}  Rb8 {[%clk 0:00:12]} 37. b7 {[%clk 0:00:09]}  Kd5 {[%clk 0:00:12]} 38. Rd3+ {[%clk 0:00:02]}  Ke6 {[%clk 0:00:12]} 39. Rb3 {[%clk 0:00:02]}  Kd5 {[%clk 0:00:11]} 40. f5 {[%clk 0:00:02]}  c5 {[%clk 0:00:09]} 41. fxg6 {[%clk 0:00:02]}  fxg6 {[%clk 0:00:10]} 42. Kf4 {[%clk 0:00:03]}  c4 {[%clk 0:00:10]} 43. Rxa3 {[%clk 0:00:03]}  Rxb7 {[%clk 0:00:10]} 44. Ra8 {[%clk 0:00:03]}  Rb6 {[%clk 0:00:09]} 45. Rd8+ {[%clk 0:00:04]}  Kc5 {[%clk 0:00:09]} 46. Rc8+ {[%clk 0:00:03]}  Kb4 {[%clk 0:00:09]} 47. Ke4 {[%clk 0:00:03]}  c3 {[%clk 0:00:07]} 48. Kd3 {[%clk 0:00:02]}  Rd6+ {[%clk 0:00:07]} 49. Kc2 {[%clk 0:00:03]}  Rd2+ {[%clk 0:00:08]} 50. Kb1 {[%clk 0:00:03]}  Rg2 {[%clk 0:00:08]} 51. Rc6 {[%clk 0:00:03]}  Rxg4 {[%clk 0:00:07]} 52. Rxf6 {[%clk 0:00:03]}  Rg2 {[%clk 0:00:08]} 53. Rb6+ {[%clk 0:00:03]}  Kc4 {[%clk 0:00:08]} 54. e4 {[%clk 0:00:03]}  g5 {[%clk 0:00:07]} 55. Rd6 {[%clk 0:00:03]}  g4 {[%clk 0:00:07]} 56. e5 {[%clk 0:00:03]}  g3 {[%clk 0:00:06]} 57. e6 {[%clk 0:00:01]}  Re2 {[%clk 0:00:07]} 58. e7 {[%clk 0:00:01]}  g2 {[%clk 0:00:06]} 59. Rg6 {[%clk 0:00:02]}  Kd3 {[%clk 0:00:03]} 60. Rd6+ {[%clk 0:00:02]}  Kc4 {[%clk 0:00:03]} 61. Rc6+ {[%clk 0:00:02]}  Kd5 {[%clk 0:00:02]} 62. Rg6 {[%clk 0:00:02]}  Rxe7 {[%clk 0:00:01]} 63. Rg5+ {[%clk 0:00:03]}  Kc4 {[%clk 0:00:02]} 64. Rxg2 {[%clk 0:00:04]}  Kd3 {[%clk 0:00:02]} 65. Rg3+ {[%clk 0:00:04]}  Kc4 {[%clk 0:00:03]} 66. Rg4+ {[%clk 0:00:05]}  Kd3 {[%clk 0:00:03]} 67. Rg3+ {[%clk 0:00:05]}  Kc4 {[%clk 0:00:04]} 68. Rg4+ {[%clk 0:00:06]}  Kd3 {[%clk 0:00:04]} 69. Rg3+ {[%clk 0:00:06]} 1/2-1/2


[Site "https://www.chess.com"]

[Event "Titled Tuesday Blitz May 17 Late 2022"]
[White "Martinez Alcantara, Jose Eduardo"]
[Black "Salem, A.R. Saleh"]
[WhiteFideId "3805662"]
[BlackFideId "9301348"]
[WhiteElo "2690"]
[BlackElo "2679"]
[Result "1-0"]
[Round "06"]
[TimeControl "180+1"]
[Date "2022.05.17"]
[WhiteClock "0:00:10"]
[BlackClock "0:00:03"]

1. e4 {[%clk 0:03:00]}  c5 {[%clk 0:03:00]} 2. Nf3 {[%clk 0:03:01]}  d6 {[%clk 0:03:00]} 3. c3 {[%clk 0:03:00]}  Nf6 {[%clk 0:03:00]} 4. h3 {[%clk 0:03:00]}  Nc6 {[%clk 0:02:56]} 5. Bd3 {[%clk 0:03:01]}  g6 {[%clk 0:02:54]} 6. Bc2 {[%clk 0:03:01]}  Bg7 {[%clk 0:02:54]} 7. d4 {[%clk 0:03:01]}  cxd4 {[%clk 0:02:52]} 8. cxd4 {[%clk 0:03:02]}  O-O {[%clk 0:02:52]} 9. Nc3 {[%clk 0:03:03]}  e5 {[%clk 0:02:52]} 10. d5 {[%clk 0:02:49]}  Nb4 {[%clk 0:02:52]} 11. Bb1 {[%clk 0:02:40]}  Nh5 {[%clk 0:02:46]} 12. O-O {[%clk 0:02:40]}  Bd7 {[%clk 0:02:24]} 13. Be3 {[%clk 0:02:29]}  Nf4 {[%clk 0:02:14]} 14. Re1 {[%clk 0:02:18]}  a5 {[%clk 0:01:53]} 15. a3 {[%clk 0:02:17]}  Na6 {[%clk 0:01:54]} 16. Bd3 {[%clk 0:02:07]}  Nc5 {[%clk 0:01:52]} 17. Bxc5 {[%clk 0:01:48]}  dxc5 {[%clk 0:01:51]} 18. Bf1 {[%clk 0:01:49]}  a4 {[%clk 0:01:44]} 19. b3 {[%clk 0:01:32]}  axb3 {[%clk 0:01:24]} 20. Qxb3 {[%clk 0:01:33]}  b6 {[%clk 0:01:12]} 21. Rab1 {[%clk 0:01:23]}  Qf6 {[%clk 0:01:06]} 22. Re3 {[%clk 0:01:14]}  Rfb8 {[%clk 0:01:03]} 23. Bb5 {[%clk 0:01:12]}  Qd6 {[%clk 0:00:28]} 24. a4 {[%clk 0:01:04]}  Bh6 {[%clk 0:00:27]} 25. Bxd7 {[%clk 0:01:01]}  Qxd7 {[%clk 0:00:27]} 26. Nxe5 {[%clk 0:01:00]}  Qd6 {[%clk 0:00:17]} 27. Nc6 {[%clk 0:00:58]}  Re8 {[%clk 0:00:12]} 28. e5 {[%clk 0:00:54]}  Qd7 {[%clk 0:00:13]} 29. Rbe1 {[%clk 0:00:33]}  Qf5 {[%clk 0:00:11]} 30. Ne4 {[%clk 0:00:28]}  Bg7 {[%clk 0:00:07]} 31. Nd6 {[%clk 0:00:26]}  Qd7 {[%clk 0:00:07]} 32. Nxe8 {[%clk 0:00:25]}  Rxe8 {[%clk 0:00:08]} 33. Rd1 {[%clk 0:00:21]}  Qf5 {[%clk 0:00:05]} 34. Rf3 {[%clk 0:00:14]}  Qg5 {[%clk 0:00:05]} 35. g3 {[%clk 0:00:14]}  Nxh3+ {[%clk 0:00:03]} 36. Kg2 {[%clk 0:00:15]}  Qg4 {[%clk 0:00:04]} 37. Rh1 {[%clk 0:00:12]}  Ng5 {[%clk 0:00:04]} 38. Rf4 {[%clk 0:00:13]}  Qe2 {[%clk 0:00:03]} 39. Qc4 {[%clk 0:00:10]}  h5 {[%clk 0:00:03]} 40. Qxe2 {[%clk 0:00:10]} 1-0


[Site "https://www.chess.com"]

[Event "Titled Tuesday Blitz May 17 Late 2022"]
[White "Oparin, Grigoriy"]
[Black "Ekdyshman, Mikhail"]
[WhiteFideId "24125890"]
[BlackFideId "4149416"]
[WhiteElo "2665"]
[BlackElo "2146"]
[Result "1-0"]
[Round "06"]
[TimeControl "180+1"]
[Date "2022.05.17"]
[WhiteClock "0:01:42"]
[BlackClock "0:00:25"]

1. b3 {[%clk 0:03:00]}  c5 {[%clk 0:02:55]} 2. Bb2 {[%clk 0:03:01]}  Nc6 {[%clk 0:02:55]} 3. e3 {[%clk 0:03:02]}  a6 {[%clk 0:02:54]} 4. f4 {[%clk 0:03:01]}  d5 {[%clk 0:02:54]} 5. Nf3 {[%clk 0:03:01]}  Nf6 {[%clk 0:02:54]} 6. Be2 {[%clk 0:03:01]}  Bg4 {[%clk 0:02:51]} 7. O-O {[%clk 0:03:01]}  e6 {[%clk 0:02:49]} 8. d3 {[%clk 0:02:59]}  Bd6 {[%clk 0:02:47]} 9. Nbd2 {[%clk 0:03:00]}  Qc7 {[%clk 0:02:43]} 10. Qe1 {[%clk 0:02:53]}  e5 {[%clk 0:02:38]} 11. fxe5 {[%clk 0:02:34]}  Nxe5 {[%clk 0:02:38]} 12. Nxe5 {[%clk 0:02:27]}  Bxe5 {[%clk 0:02:38]} 13. Bxe5 {[%clk 0:02:27]}  Qxe5 {[%clk 0:02:38]} 14. Rxf6 {[%clk 0:02:09]}  Bxe2 {[%clk 0:02:28]} 15. Rf2 {[%clk 0:02:09]}  Bg4 {[%clk 0:02:25]} 16. d4 {[%clk 0:02:06]}  Qe7 {[%clk 0:02:06]} 17. h3 {[%clk 0:02:03]}  Be6 {[%clk 0:01:59]} 18. dxc5 {[%clk 0:02:03]}  Qxc5 {[%clk 0:01:58]} 19. Nf3 {[%clk 0:02:03]}  O-O {[%clk 0:01:51]} 20. Nd4 {[%clk 0:02:04]}  Rac8 {[%clk 0:01:49]} 21. Qd2 {[%clk 0:02:04]}  Qc3 {[%clk 0:01:45]} 22. Raf1 {[%clk 0:02:01]}  Qxd2 {[%clk 0:01:43]} 23. Rxd2 {[%clk 0:02:02]}  Rc3 {[%clk 0:01:38]} 24. Rd3 {[%clk 0:02:01]}  Rxd3 {[%clk 0:01:36]} 25. cxd3 {[%clk 0:02:02]}  Rc8 {[%clk 0:01:36]} 26. Kf2 {[%clk 0:02:02]}  Kf8 {[%clk 0:01:35]} 27. Ke2 {[%clk 0:02:03]}  Ke7 {[%clk 0:01:36]} 28. Kd2 {[%clk 0:02:04]}  Kd6 {[%clk 0:01:33]} 29. b4 {[%clk 0:02:04]}  Ke5 {[%clk 0:01:30]} 30. a3 {[%clk 0:02:03]}  f6 {[%clk 0:01:26]} 31. Nb3 {[%clk 0:02:03]}  b6 {[%clk 0:01:24]} 32. Nd4 {[%clk 0:02:02]}  Bd7 {[%clk 0:01:24]} 33. h4 {[%clk 0:01:57]}  Bg4 {[%clk 0:01:19]} 34. Rg1 {[%clk 0:01:54]}  h5 {[%clk 0:01:13]} 35. g3 {[%clk 0:01:54]}  Rc7 {[%clk 0:01:12]} 36. Rb1 {[%clk 0:01:53]}  Bd7 {[%clk 0:01:05]} 37. Ra1 {[%clk 0:01:54]}  Ba4 {[%clk 0:01:01]} 38. Rf1 {[%clk 0:01:54]}  Bd7 {[%clk 0:01:02]} 39. Ne2 {[%clk 0:01:54]}  Ba4 {[%clk 0:00:56]} 40. Nd4 {[%clk 0:01:52]}  Bd7 {[%clk 0:00:56]} 41. Rg1 {[%clk 0:01:53]}  Bg4 {[%clk 0:00:56]} 42. Ra1 {[%clk 0:01:53]}  Bd7 {[%clk 0:00:56]} 43. a4 {[%clk 0:01:52]}  Rc8 {[%clk 0:00:52]} 44. a5 {[%clk 0:01:52]}  Rb8 {[%clk 0:00:46]} 45. axb6 {[%clk 0:01:52]}  Rxb6 {[%clk 0:00:46]} 46. Kc3 {[%clk 0:01:53]}  g5 {[%clk 0:00:44]} 47. Rh1 {[%clk 0:01:49]}  Rb8 {[%clk 0:00:42]} 48. hxg5 {[%clk 0:01:49]}  Rc8+ {[%clk 0:00:42]} 49. Kd2 {[%clk 0:01:49]}  Bg4 {[%clk 0:00:32]} 50. gxf6 {[%clk 0:01:45]}  Kxf6 {[%clk 0:00:32]} 51. Ra1 {[%clk 0:01:45]}  Ke5 {[%clk 0:00:28]} 52. Rxa6 {[%clk 0:01:45]}  Rf8 {[%clk 0:00:28]} 53. b5 {[%clk 0:01:41]}  Rf2+ {[%clk 0:00:27]} 54. Kc3 {[%clk 0:01:41]}  Rg2 {[%clk 0:00:25]} 55. b6 {[%clk 0:01:42]} 1-0


[Site "https://www.chess.com"]

[Event "Titled Tuesday Blitz May 17 Late 2022"]
[White "Popilski, Gil"]
[Black "Chigaev, Maksim"]
[WhiteFideId "2809060"]
[BlackFideId "4108116"]
[WhiteElo "2537"]
[BlackElo "2457"]
[Result "0-1"]
[Round "06"]
[TimeControl "180+1"]
[Date "2022.05.17"]
[WhiteClock "0:00:07"]
[BlackClock "0:00:50"]

1. e4 {[%clk 0:03:00]}  e5 {[%clk 0:02:57]} 2. Nf3 {[%clk 0:03:00]}  Nc6 {[%clk 0:02:57]} 3. Bb5 {[%clk 0:02:56]}  a6 {[%clk 0:02:57]} 4. Ba4 {[%clk 0:02:56]}  Nge7 {[%clk 0:02:57]} 5. Nc3 {[%clk 0:02:55]}  Ng6 {[%clk 0:02:54]} 6. d4 {[%clk 0:02:48]}  exd4 {[%clk 0:02:49]} 7. Nxd4 {[%clk 0:02:49]}  Bc5 {[%clk 0:02:45]} 8. Be3 {[%clk 0:02:38]}  Bxd4 {[%clk 0:02:36]} 9. Bxd4 {[%clk 0:02:36]}  O-O {[%clk 0:02:36]} 10. Be3 {[%clk 0:02:24]}  Re8 {[%clk 0:02:35]} 11. O-O {[%clk 0:02:23]}  d6 {[%clk 0:02:30]} 12. f3 {[%clk 0:02:01]}  Nge5 {[%clk 0:02:28]} 13. Bb3 {[%clk 0:01:58]}  Be6 {[%clk 0:02:27]} 14. Bxe6 {[%clk 0:01:48]}  fxe6 {[%clk 0:02:27]} 15. b3 {[%clk 0:01:47]}  Qf6 {[%clk 0:02:25]} 16. Ne2 {[%clk 0:01:44]}  Rad8 {[%clk 0:02:23]} 17. c4 {[%clk 0:01:43]}  h6 {[%clk 0:02:23]} 18. Bf2 {[%clk 0:01:39]}  Ne7 {[%clk 0:02:14]} 19. Rc1 {[%clk 0:01:31]}  c5 {[%clk 0:02:14]} 20. f4 {[%clk 0:01:20]}  Ng4 {[%clk 0:02:11]} 21. Qd3 {[%clk 0:01:19]}  Nxf2 {[%clk 0:02:04]} 22. Rxf2 {[%clk 0:01:20]}  Nc6 {[%clk 0:02:04]} 23. Rcf1 {[%clk 0:01:16]}  Kh8 {[%clk 0:01:34]} 24. h3 {[%clk 0:01:16]}  b5 {[%clk 0:01:22]} 25. cxb5 {[%clk 0:01:15]}  Nb4 {[%clk 0:01:22]} 26. Qc4 {[%clk 0:00:51]}  d5 {[%clk 0:01:20]} 27. Qc3 {[%clk 0:00:32]}  axb5 {[%clk 0:01:18]} 28. e5 {[%clk 0:00:28]}  Qe7 {[%clk 0:01:13]} 29. a3 {[%clk 0:00:27]}  d4 {[%clk 0:01:12]} 30. Qf3 {[%clk 0:00:26]}  Nd5 {[%clk 0:01:12]} 31. f5 {[%clk 0:00:20]}  exf5 {[%clk 0:01:11]} 32. Qxf5 {[%clk 0:00:20]}  Ne3 {[%clk 0:01:04]} 33. Qe4 {[%clk 0:00:19]}  Nxf1 {[%clk 0:00:54]} 34. Nf4 {[%clk 0:00:19]}  Kg8 {[%clk 0:00:52]} 35. Ng6 {[%clk 0:00:12]}  Qe6 {[%clk 0:00:52]} 36. Rxf1 {[%clk 0:00:13]}  d3 {[%clk 0:00:52]} 37. Rd1 {[%clk 0:00:07]}  Rd4 {[%clk 0:00:50]} 0-1


[Site "https://www.chess.com"]

[Event "Titled Tuesday Blitz May 17 Late 2022"]
[White "Puranik, Abhimanyu"]
[Black "Kanyamarala, Tarun"]
[WhiteFideId "5061245"]
[BlackFideId "45004714"]
[WhiteElo "2520"]
[BlackElo "2219"]
[Result "1-0"]
[Round "06"]
[TimeControl "180+1"]
[Date "2022.05.17"]
[WhiteClock "0:00:24"]
[BlackClock "0:00:01"]

1. e4 {[%clk 0:03:00]}  c5 {[%clk 0:02:54]} 2. Nf3 {[%clk 0:02:59]}  Nc6 {[%clk 0:02:54]} 3. Bb5 {[%clk 0:02:57]}  g6 {[%clk 0:02:54]} 4. Bxc6 {[%clk 0:02:57]}  dxc6 {[%clk 0:02:53]} 5. O-O {[%clk 0:02:57]}  Bg7 {[%clk 0:02:53]} 6. h3 {[%clk 0:02:57]}  Nf6 {[%clk 0:02:49]} 7. d3 {[%clk 0:02:57]}  Nd7 {[%clk 0:02:49]} 8. Nc3 {[%clk 0:02:56]}  e5 {[%clk 0:02:47]} 9. Nd2 {[%clk 0:02:55]}  O-O {[%clk 0:02:41]} 10. a4 {[%clk 0:02:56]}  a5 {[%clk 0:02:27]} 11. Nc4 {[%clk 0:02:55]}  b6 {[%clk 0:02:21]} 12. Be3 {[%clk 0:02:53]}  Ba6 {[%clk 0:02:13]} 13. b3 {[%clk 0:02:51]}  f5 {[%clk 0:02:13]} 14. exf5 {[%clk 0:02:26]}  gxf5 {[%clk 0:02:13]} 15. Bd2 {[%clk 0:02:26]}  e4 {[%clk 0:02:02]} 16. dxe4 {[%clk 0:02:22]}  Bxc4 {[%clk 0:01:59]} 17. bxc4 {[%clk 0:02:21]}  Ne5 {[%clk 0:01:56]} 18. Qe2 {[%clk 0:02:07]}  Qd4 {[%clk 0:01:41]} 19. Rfd1 {[%clk 0:01:37]}  Qxc4 {[%clk 0:01:28]} 20. Rab1 {[%clk 0:01:37]}  Qxe2 {[%clk 0:00:49]} 21. Nxe2 {[%clk 0:01:37]}  fxe4 {[%clk 0:00:50]} 22. Rxb6 {[%clk 0:01:13]}  Nc4 {[%clk 0:00:50]} 23. Rbb1 {[%clk 0:01:10]}  Bd4 {[%clk 0:00:39]} 24. Nxd4 {[%clk 0:01:03]}  cxd4 {[%clk 0:00:39]} 25. Bh6 {[%clk 0:01:03]}  Rf6 {[%clk 0:00:37]} 26. Rxd4 {[%clk 0:01:02]}  Na3 {[%clk 0:00:35]} 27. Rb3 {[%clk 0:01:00]}  Nxc2 {[%clk 0:00:34]} 28. Rg3+ {[%clk 0:01:00]}  Rg6 {[%clk 0:00:18]} 29. Rxe4 {[%clk 0:00:56]}  Nb4 {[%clk 0:00:15]} 30. Rxg6+ {[%clk 0:00:44]}  hxg6 {[%clk 0:00:15]} 31. Re7 {[%clk 0:00:43]}  Nd5 {[%clk 0:00:08]} 32. Rb7 {[%clk 0:00:43]}  c5 {[%clk 0:00:06]} 33. Bd2 {[%clk 0:00:41]}  c4 {[%clk 0:00:05]} 34. Rb5 {[%clk 0:00:40]}  Nb4 {[%clk 0:00:04]} 35. Bxb4 {[%clk 0:00:38]}  axb4 {[%clk 0:00:04]} 36. Rxb4 {[%clk 0:00:38]}  Rc8 {[%clk 0:00:03]} 37. a5 {[%clk 0:00:25]}  Kf7 {[%clk 0:00:01]} 38. a6 {[%clk 0:00:25]}  Ke6 {[%clk 0:00:01]} 39. a7 {[%clk 0:00:24]}  Kd5 {[%clk 0:00:01]} 40. Rb8 {[%clk 0:00:24]} 1-0


[Site "https://www.chess.com"]